fUSD/lending_fUSD_20240223
["ID","MTS","AMOUNT","RATE_DAILY","PERIOD"]
[314987856,1708716648317,-500.0,0.00028767,2]
[314987857,1708716648327,-1249.12,0.00028767,2]
[314987858,1708716648337,-500.0,0.00028767,2]
[314987859,1708716648347,-500.0,0.00028767,2]
[314987860,1708716648357,-597.21,0.00028767,2]
[314987861,1708716648366,-500.0,0.00028767,2]
[314987862,1708716648376,-500.0,0.00028767,2]
[314987863,1708716648386,-956.56,0.00028767,2]
[314987864,1708716648397,-2365.53,0.00028767,2]
[314987865,1708716648407,-500.0,0.00028767,2]
[314987866,1708716648416,-1344.39,0.00028767,2]
[314987867,1708716648426,-500.0,0.00028767,2]
[314987868,1708716648435,-1433.17,0.00028767,2]
[314987869,1708716648444,-1067.67,0.00028767,2]
[314987870,1708716648458,-1175.68,0.00028767,2]
[314987871,1708716648467,-500.0,0.00028767,2]
[314987872,1708716648477,-3334.59,0.00028767,2]
[314987873,1708716648487,-500.0,0.00028767,2]
[314987874,1708716648497,-1551.36,0.00028767,2]
[314987875,1708716648506,-2604.11,0.00028767,2]
[314987876,1708716648516,-702.0,0.00028767,2]
[314987877,1708716648526,-3056.12,0.00028767,2]
[314987878,1708716648536,-500.0,0.00028767,2]
[314987879,1708716648546,-155.26,0.00028771,2]
[314987880,1708716648556,-673.07,0.0002878,2]
[314987881,1708716648566,-2811.9828652,0.00028787,4]
[314987882,1708716648576,-152.6064863,0.00028787,2]
[314987883,1708716648585,-589.99615647,0.00028794,4]
[314987884,1708716648595,-187.75081345,0.00028796,4]
[314987885,1708716648604,-195.56600978,0.00028798,4]
[314987886,1708716648613,-187.75081345,0.00028801,4]
[314987887,1708716648623,-589.99615647,0.00028802,4]
[314987888,1708716648633,-156.30526137,0.00028803,2]
[314987889,1708716648645,-195.56600978,0.00028808,4]
[314987890,1708716648654,-12766.43900291,0.0002881,4]
[314987891,1708716648665,-2811.9828652,0.00028811,4]
[314987892,1708716648674,-276.18919681,0.00028811,4]
[314987893,1708716648684,-2811.9828652,0.00028815,4]
[314987894,1708716648693,-2908.05,0.00028822,2]
[314987895,1708716648703,-39021.29574866,0.00028825,4]
[314987896,1708716648712,-195.56600978,0.00028827,4]
[314987897,1708716648722,-276.18919681,0.00028828,4]
[314987898,1708716648731,-369.98974833,0.00028829,2]
[314987899,1708716648743,-12766.43900291,0.00028831,4]
[314987900,1708716648752,-187.75081345,0.00028834,4]
[314987901,1708716648762,-589.99615647,0.00028839,4]
[314987902,1708716648772,-355.20424175,0.00028841,2]
[314987903,1708716648782,-153.50007691,0.00028843,2]
[314987904,1708716648792,-589.99615647,0.00028845,4]
[314987905,1708716648802,-39021.29574866,0.0002885,4]
[314987906,1708716648811,-276.18919681,0.00028852,4]
[314987907,1708716648826,-195.56600978,0.00028856,4]
[314987908,1708716648836,-172.6258371,0.00028857,2]
[314987909,1708716648846,-187.75081345,0.00028861,4]
[314987910,1708716648856,-589.99615647,0.00028863,4]
[314987911,1708716648865,-159.39088986,0.00028869,2]
[314987912,1708716648875,-2659.9837914,0.00028871,6]
[314987913,1708716648885,-187.75081345,0.00028872,4]
[314987914,1708716648896,-5000.0,0.00028875,2]
[314987915,1708716648906,-369.98974833,0.00028876,2]
[314987916,1708716648915,-337.53725946,0.00028877,2]
[314987917,1708716648925,-39021.29574866,0.00028877,4]
[314987918,1708716648934,-2811.9828652,0.0002888,4]
[314987919,1708716648944,-39021.29574866,0.00028881,4]
[314987920,1708716648954,-12766.43900291,0.00028881,4]
[314987921,1708716648963,-558.10447233,0.00028881,6]
[314987922,1708716648974,-12766.43900291,0.00028885,4]
[314987923,1708716648984,-12076.36121897,0.00028886,6]
[314987924,1708716648993,-184.99487411,0.00028887,6]
[314987925,1708716649003,-261.26005104,0.00028887,6]
[314987926,1708716649013,-12766.43900291,0.00028889,4]
[314987927,1708716649022,-2811.9828652,0.0002889,4]
[314987928,1708716649032,-522.52010218,0.00028891,2]
[314987929,1708716649042,-177.60212082,0.00028892,6]
[314987930,1708716649052,-195.56600978,0.00028893,4]
[314987931,1708716649062,-276.18919681,0.00028894,4]
[314987932,1708716649071,-500.0,0.00028896,2]
[314987933,1708716649081,-500.0,0.00028896,2]
[314987934,1708716649090,-500.0,0.00028896,2]
[314987935,1708716649100,-500.0,0.00028896,2]
[314987936,1708716649109,-500.0,0.00028896,2]
[314987937,1708716649119,-500.0,0.00028896,2]
[314987938,1708716649128,-500.0,0.00028896,2]
[314987939,1708716649138,-500.0,0.00028896,2]
[314987940,1708716649149,-437.19267907,0.00028896,2]
[314987941,1708716649159,-500.0,0.00028896,2]
[314987942,1708716649168,-500.0,0.00028896,2]
[314987943,1708716649178,-500.0,0.00028896,2]
[314987944,1708716649187,-500.0,0.00028896,2]
[314987945,1708716649197,-500.0,0.00028896,2]
[314987946,1708716649207,-500.0,0.00028896,2]
[314987947,1708716649216,-500.0,0.00028896,2]
[314987948,1708716649226,-500.0,0.00028896,2]
[314987949,1708716649239,-500.0,0.00028896,2]
[314987950,1708716649249,-500.0,0.00028896,2]
[314987951,1708716649258,-500.0,0.00028896,2]
[314987952,1708716649267,-151.5153954,0.00028896,2]
[314987953,1708716649277,-500.0,0.00028896,2]
[314987954,1708716649287,-163.51762608,0.00028896,2]
[314987955,1708716649296,-500.0,0.00028896,2]
[314987956,1708716649306,-199.40574857,0.00028896,2]
[314987957,1708716649316,-500.0,0.00028896,2]
[314987958,1708716649325,-500.0,0.00028896,2]
[314987959,1708716649335,-500.0,0.00028896,2]
[314987960,1708716649344,-500.0,0.00028896,2]
[314987961,1708716649354,-500.0,0.00028896,2]
[314987962,1708716649363,-500.0,0.00028896,2]
[314987963,1708716649373,-500.0,0.00028896,2]
[314987964,1708716649382,-248.26016529,0.00028896,2]
[314987965,1708716649392,-500.0,0.00028896,2]
[314987966,1708716649404,-500.0,0.00028896,2]
[314987967,1708716649413,-500.0,0.00028896,2]
[314987968,1708716649422,-500.0,0.00028896,2]
[314987969,1708716649431,-500.0,0.00028896,2]
[314987970,1708716649441,-500.0,0.00028896,2]
[314987971,1708716649451,-435.46312005,0.00028896,2]
[314987972,1708716649460,-500.0,0.00028896,2]
[314987973,1708716649470,-500.0,0.00028896,2]
[314987974,1708716649479,-500.0,0.00028896,2]
[314987975,1708716649489,-500.0,0.00028896,2]
[314987976,1708716649499,-500.0,0.00028896,2]
[314987977,1708716649508,-500.0,0.00028896,2]
[314987978,1708716649518,-500.0,0.00028896,2]
[314987979,1708716649601,-500.0,0.00028896,2]
[314987980,1708716649611,-500.0,0.00028896,2]
[314987981,1708716649620,-500.0,0.00028896,2]
[314987982,1708716649629,-500.0,0.00028896,2]
[314987983,1708716649638,-500.0,0.00028896,2]
[314987984,1708716649648,-500.0,0.00028896,2]
[314987985,1708716649657,-500.0,0.00028896,2]
[314987986,1708716649666,-500.0,0.00028896,2]
[314987987,1708716649676,-500.0,0.00028896,2]
[314987988,1708716649685,-500.0,0.00028896,2]
[314987989,1708716649694,-500.0,0.00028896,2]
[314987990,1708716649704,-500.0,0.00028896,2]
[314987991,1708716649713,-500.0,0.00028896,2]
[314987992,1708716649722,-500.0,0.00028896,2]
[314987993,1708716649731,-500.0,0.00028896,2]
[314987994,1708716649740,-500.0,0.00028896,2]
[314987995,1708716649751,-500.0,0.00028896,2]
[314987996,1708716649761,-231.10056414,0.00028896,2]
[314987997,1708716649770,-500.0,0.00028896,2]
[314987998,1708716649779,-500.0,0.00028896,2]
[314987999,1708716649788,-500.0,0.00028896,2]
[314988000,1708716649797,-500.0,0.00028896,2]
[314988001,1708716649806,-150.0,0.00028896,2]
[314988002,1708716649815,-500.0,0.00028896,2]
[314988003,1708716649824,-500.0,0.00028896,2]
[314988004,1708716649834,-500.0,0.00028896,2]
[314988005,1708716649843,-245.25943475,0.00028896,2]
[314988006,1708716649852,-500.0,0.00028896,2]
[314988007,1708716649861,-500.0,0.00028896,2]
[314988008,1708716649870,-554.11754145,0.00028896,2]
[314988009,1708716649879,-520.36857423,0.00028896,2]
[314988010,1708716649889,-500.0,0.00028896,2]
[314988011,1708716649899,-500.0,0.00028896,2]
[314988012,1708716649908,-500.0,0.00028896,2]
[314988013,1708716649917,-523.98516288,0.00028896,2]
[314988014,1708716649926,-500.0,0.00028896,2]
[314988015,1708716649935,-500.0,0.00028896,2]
[314988016,1708716649944,-500.0,0.00028896,2]
[314988017,1708716649953,-500.0,0.00028896,2]
[314988018,1708716649962,-500.0,0.00028896,2]
[314988019,1708716649971,-500.0,0.00028896,2]
[314988020,1708716649981,-500.0,0.00028896,2]
[314988021,1708716649991,-500.0,0.00028896,2]
[314988022,1708716650001,-500.0,0.00028896,2]
[314988023,1708716650010,-528.53165892,0.00028896,2]
[314988024,1708716650019,-500.0,0.00028896,2]
[314988025,1708716650028,-500.0,0.00028896,2]
[314988026,1708716650037,-500.0,0.00028896,2]
[314988027,1708716650047,-500.0,0.00028896,2]
[314988028,1708716650057,-500.0,0.00028896,2]
[314988029,1708716650066,-500.0,0.00028896,2]
[314988030,1708716650075,-500.0,0.00028896,2]
[314988031,1708716650085,-500.0,0.00028896,2]
[314988032,1708716650094,-500.0,0.00028896,2]
[314988033,1708716650103,-500.0,0.00028896,2]
[314988034,1708716650112,-500.0,0.00028896,2]
[314988035,1708716650122,-500.0,0.00028896,2]
[314988036,1708716650131,-500.0,0.00028896,2]
[314988037,1708716650140,-500.0,0.00028896,2]
[314988038,1708716650150,-500.0,0.00028896,2]
[314988039,1708716650159,-500.0,0.00028896,2]
[314988040,1708716650169,-500.0,0.00028896,2]
[314988041,1708716650178,-500.0,0.00028896,2]
[314988042,1708716650188,-500.0,0.00028896,2]
[314988043,1708716650198,-500.0,0.00028896,2]
[314988044,1708716650207,-500.0,0.00028896,2]
[314988045,1708716650216,-479.48662548,0.00028896,2]
[314988046,1708716650226,-500.0,0.00028896,2]
[314988047,1708716650238,-500.0,0.00028896,2]
[314988048,1708716650248,-500.0,0.00028896,2]
[314988049,1708716650257,-500.0,0.00028896,2]
[314988050,1708716650267,-500.0,0.00028896,2]
[314988051,1708716650276,-500.0,0.00028896,2]
[314988052,1708716650286,-500.0,0.00028896,2]
[314988053,1708716650296,-500.0,0.00028896,2]
[314988054,1708716650306,-500.0,0.00028896,2]
[314988055,1708716650315,-500.0,0.00028896,2]
[314988056,1708716650326,-500.0,0.00028896,2]
[314988057,1708716650336,-500.0,0.00028896,2]
[314988058,1708716650345,-156.78441018,0.00028896,2]
[314988059,1708716650355,-500.0,0.00028896,2]
[314988060,1708716650365,-500.0,0.00028896,2]
[314988061,1708716650374,-500.0,0.00028896,2]
[314988062,1708716650384,-500.0,0.00028896,2]
[314988063,1708716650394,-500.0,0.00028896,2]
[314988064,1708716650404,-1226.41,0.00028896,2]
[314988065,1708716650414,-500.0,0.00028896,2]
[314988066,1708716650424,-500.0,0.00028896,2]
[314988067,1708716650433,-500.0,0.00028896,2]
[314988068,1708716650442,-500.0,0.00028896,2]
[314988069,1708716650452,-500.0,0.00028896,2]
[314988070,1708716650461,-500.0,0.00028896,2]
[314988071,1708716650471,-748.66,0.00028896,2]
[314988072,1708716650480,-500.0,0.00028896,2]
[314988073,1708716650490,-500.0,0.00028896,2]
[314988074,1708716650499,-500.0,0.00028896,2]
[314988075,1708716650508,-500.0,0.00028896,2]
[314988076,1708716650518,-749.44,0.00028896,2]
[314988077,1708716650527,-500.0,0.00028896,2]
[314988078,1708716650536,-500.0,0.00028896,2]
[314988079,1708716650545,-500.0,0.00028896,2]
[314988080,1708716650555,-500.0,0.00028896,2]
[314988081,1708716650565,-500.0,0.00028896,2]
[314988082,1708716650574,-500.0,0.00028896,2]
[314988083,1708716650583,-500.0,0.00028896,2]
[314988084,1708716650593,-500.0,0.00028896,2]
[314988085,1708716650603,-569.85,0.00028896,2]
[314988086,1708716650612,-500.0,0.00028896,2]
[314988087,1708716650622,-500.0,0.00028896,2]
[314988088,1708716650631,-500.0,0.00028896,2]
[314988089,1708716650641,-500.0,0.00028896,2]
[314988090,1708716650651,-500.0,0.00028896,2]
[314988091,1708716650660,-500.0,0.00028896,2]
[314988092,1708716650669,-500.0,0.00028896,2]
[314988093,1708716650678,-500.0,0.00028896,2]
[314988094,1708716650688,-339.12972734,0.00028896,2]
[314988095,1708716650698,-500.0,0.00028896,2]
[314988096,1708716650708,-500.0,0.00028896,2]
[314988097,1708716650717,-500.0,0.00028896,2]
[314988098,1708716650727,-500.0,0.00028896,2]
[314988099,1708716650736,-500.0,0.00028896,2]
[314988100,1708716650747,-500.0,0.00028896,2]
[314988101,1708716650757,-500.0,0.00028896,2]
[314988102,1708716650767,-677.35,0.00028896,2]
[314988103,1708716650777,-307.98648211,0.00028896,2]
[314988104,1708716650787,-500.0,0.00028896,2]
[314988105,1708716650796,-500.0,0.00028896,2]
[314988106,1708716650805,-500.0,0.00028896,2]
[314988107,1708716650815,-500.0,0.00028896,2]
[314988108,1708716650825,-500.0,0.00028896,2]
[314988109,1708716650834,-500.0,0.00028896,2]
[314988110,1708716650844,-500.0,0.00028896,2]
[314988111,1708716650853,-500.0,0.00028896,2]
[314988112,1708716650863,-500.0,0.00028896,2]
[314988113,1708716650873,-500.0,0.00028896,2]
[314988114,1708716650882,-500.0,0.00028896,2]
[314988115,1708716650893,-500.0,0.00028896,2]
[314988116,1708716650904,-500.0,0.00028896,2]
[314988117,1708716650914,-500.0,0.00028896,2]
[314988118,1708716650924,-500.0,0.00028896,2]
[314988119,1708716650934,-500.0,0.00028896,2]
[314988120,1708716650944,-500.0,0.00028896,2]
[314988121,1708716650954,-500.0,0.00028896,2]
[314988122,1708716650963,-500.0,0.00028896,2]
[314988123,1708716650973,-1246.55,0.00028896,2]
[314988124,1708716650983,-500.0,0.00028896,2]
[314988125,1708716650993,-500.0,0.00028896,2]
[314988126,1708716651003,-500.0,0.00028896,2]
[314988127,1708716651013,-500.0,0.00028896,2]
[314988128,1708716651022,-500.0,0.00028896,2]
[314988129,1708716651032,-500.0,0.00028896,2]
[314988130,1708716651042,-500.0,0.00028896,2]
[314988131,1708716651052,-528.99453263,0.00028896,2]
[314988132,1708716651062,-745.51,0.00028896,2]
[314988133,1708716651072,-500.0,0.00028896,2]
[314988134,1708716651082,-500.0,0.00028896,2]
[314988135,1708716651091,-500.0,0.00028896,2]
[314988136,1708716651101,-500.0,0.00028896,2]
[314988137,1708716651111,-500.0,0.00028896,2]
[314988138,1708716651120,-500.0,0.00028896,2]
[314988139,1708716651129,-500.0,0.00028896,2]
[314988140,1708716651139,-500.0,0.00028896,2]
[314988141,1708716651149,-500.0,0.00028896,2]
[314988142,1708716651158,-500.0,0.00028896,2]
[314988143,1708716651168,-500.0,0.00028896,2]
[314988144,1708716651177,-500.0,0.00028896,2]
[314988145,1708716651187,-500.0,0.00028896,2]
[314988146,1708716651196,-500.0,0.00028896,2]
[314988147,1708716651206,-528.00214082,0.00028896,2]
[314988148,1708716651215,-500.0,0.00028896,2]
[314988149,1708716651225,-500.0,0.00028896,2]
[314988150,1708716651237,-500.0,0.00028896,2]
[314988151,1708716651247,-500.0,0.00028896,2]
[314988152,1708716651257,-500.0,0.00028896,2]
[314988153,1708716651267,-394.71366017,0.00028896,2]
[314988154,1708716651277,-578.28,0.00028896,2]
[314988155,1708716651287,-500.0,0.00028896,2]
[314988156,1708716651297,-500.0,0.00028896,2]
[314988157,1708716651306,-500.0,0.00028896,2]
[314988158,1708716651318,-500.0,0.00028896,2]
[314988159,1708716651329,-500.0,0.00028896,2]
[314988160,1708716651338,-500.0,0.00028896,2]
[314988161,1708716651348,-500.0,0.00028896,2]
[314988162,1708716651358,-500.0,0.00028896,2]
[314988163,1708716651368,-500.0,0.00028896,2]
[314988164,1708716651377,-500.0,0.00028896,2]
[314988165,1708716651388,-500.0,0.00028896,2]
[314988166,1708716651398,-500.0,0.00028896,2]
[314988167,1708716651408,-500.0,0.00028896,2]
[314988168,1708716651418,-640.46,0.00028896,2]
[314988169,1708716651427,-500.0,0.00028896,2]
[314988170,1708716651437,-500.0,0.00028896,2]
[314988171,1708716651446,-536.07227467,0.00028896,2]
[314988172,1708716651456,-500.0,0.00028896,2]
[314988173,1708716651466,-500.0,0.00028896,2]
[314988174,1708716651475,-500.0,0.00028896,2]
[314988175,1708716651485,-500.0,0.00028896,2]
[314988176,1708716651494,-1048.34,0.00028896,2]
[314988177,1708716651504,-500.0,0.00028896,2]
[314988178,1708716651514,-500.0,0.00028896,2]
[314988179,1708716651523,-500.0,0.00028896,2]
[314988180,1708716651533,-500.0,0.00028896,2]
[314988181,1708716651543,-500.0,0.00028896,2]
[314988182,1708716651553,-500.0,0.00028896,2]
[314988183,1708716651562,-500.0,0.00028896,2]
[314988184,1708716651572,-500.0,0.00028896,2]
[314988185,1708716651581,-36912.036519,0.00028897,6]
[314988186,1708716651590,-39021.29574866,0.00028898,4]
[314988187,1708716651599,-276.18919681,0.00028898,4]
[314988188,1708716651609,-73824.0730381,0.00028903,2]
[314988189,1708716651618,-500.0,0.00028904,2]
[314988190,1708716651628,-24152.72243804,0.00028904,2]
[314988191,1708716651637,-500.0,0.00028904,2]
[314988192,1708716651647,-500.0,0.00028904,2]
[314988193,1708716651656,-500.0,0.00028904,2]
[314988194,1708716651665,-672.42,0.00028904,2]
[314988195,1708716651675,-931.36,0.00028904,2]
[314988196,1708716651685,-500.0,0.00028904,2]
[314988197,1708716651694,-924.78,0.00028904,2]
[314988198,1708716651703,-500.0,0.00028904,2]
[314988199,1708716651713,-1249.12,0.00028904,2]
[314988200,1708716651723,-500.0,0.00028904,2]
[314988201,1708716651732,-597.21,0.00028904,2]
[314988202,1708716651743,-500.0,0.00028904,2]
[314988203,1708716651752,-500.0,0.00028904,2]
[314988204,1708716651762,-956.56,0.00028904,2]
[314988205,1708716651772,-2365.53,0.00028904,2]
[314988206,1708716651782,-500.0,0.00028904,2]
[314988207,1708716651791,-1344.39,0.00028904,2]
[314988208,1708716651801,-465.92514728,0.00028904,2]
[314988209,1708716651811,-1433.17,0.00028904,2]
[314988210,1708716651821,-1067.67,0.00028904,2]
[314988211,1708716651830,-1175.68,0.00028904,2]
[314988212,1708716651840,-3334.59,0.00028904,2]
[314988213,1708716651850,-500.0,0.00028904,2]
[314988214,1708716651859,-1551.36,0.00028904,2]
[314988215,1708716651868,-2604.11,0.00028904,2]
[314988216,1708716651878,-702.0,0.00028904,2]
[314988217,1708716651887,-3056.12,0.00028904,2]
[314988218,1708716651898,-500.0,0.00028904,2]
[314988219,1708716651908,-5319.967583,0.00028909,2]
[314988220,1708716651917,-355.20424175,0.00028912,2]
[314988221,1708716651927,-1116.20894476,0.00028925,2]
[314988222,1708716651937,-5319.967583,0.00028938,2]
[314988223,1708716651947,-1116.20894476,0.00028954,2]
[314988224,1708716651957,-24152.72243804,0.00028957,2]
[314988225,1708716651966,-522.52010218,0.00028969,2]
[314988226,1708716651975,-154.98329938,0.00028976,2]
[314988227,1708716651984,-155.26,0.00028978,2]
[314988228,1708716651994,-73824.0730381,0.00028981,2]
[314988229,1708716652004,-500.0,0.00028999,2]
[314988230,1708716652014,-641.20178618,0.00028999,2]
[314988231,1708716652023,-500.0,0.00028999,2]
[314988232,1708716652033,-500.0,0.00028999,2]
[314988233,1708716652042,-577.36949432,0.00028999,2]
[314988234,1708716652052,-329.58300539,0.00028999,2]
[314988235,1708716652061,-500.0,0.00028999,2]
[314988236,1708716652070,-500.0,0.00028999,2]
[314988237,1708716652079,-328.57882666,0.00028999,2]
[314988238,1708716652089,-219.94653771,0.00028999,2]
[314988239,1708716652098,-500.0,0.00028999,2]
[314988240,1708716652107,-348.95846687,0.00028999,2]
[314988241,1708716652116,-601.37594501,0.00028999,2]
[314988242,1708716652126,-500.0,0.00028999,2]
[314988243,1708716652135,-29725.12499081,0.00029,2]
[314988244,1708716652144,-900.0,0.00029,30]
[314988245,1708716652155,-156.30526137,0.0002903,2]
[314988246,1708716652164,-500.0,0.00029033,2]
[314988247,1708716652173,-500.0,0.00029033,2]
[314988248,1708716652182,-500.0,0.00029033,2]
[314988249,1708716652191,-500.0,0.00029033,2]
[314988250,1708716652201,-500.0,0.00029033,2]
[314988251,1708716652211,-500.0,0.00029033,2]
[314988252,1708716652221,-500.0,0.00029033,2]
[314988253,1708716652234,-500.0,0.00029033,2]
[314988254,1708716652243,-500.0,0.00029033,2]
[314988255,1708716652252,-500.0,0.00029033,2]
[314988256,1708716652261,-500.0,0.00029033,2]
[314988257,1708716652270,-500.0,0.00029033,2]
[314988258,1708716652280,-500.0,0.00029033,2]
[314988259,1708716652289,-500.0,0.00029033,2]
[314988260,1708716652300,-500.0,0.00029033,2]
[314988261,1708716652311,-500.0,0.00029033,2]
[314988262,1708716652322,-500.0,0.00029033,2]
[314988263,1708716652331,-500.0,0.00029033,2]
[314988264,1708716652341,-500.0,0.00029033,2]
[314988265,1708716652351,-500.0,0.00029033,2]
[314988266,1708716652361,-500.0,0.00029033,2]
[314988267,1708716652370,-251.15579904,0.00029033,2]
[314988268,1708716652379,-500.0,0.00029033,2]
[314988269,1708716652389,-500.0,0.00029033,2]
[314988270,1708716652399,-500.0,0.00029033,2]
[314988271,1708716652409,-500.0,0.00029033,2]
[314988272,1708716652417,-431.95251444,0.00029033,2]
[314988273,1708716652426,-500.0,0.00029033,2]
[314988274,1708716652437,-500.0,0.00029033,2]
[314988275,1708716652446,-500.0,0.00029033,2]
[314988276,1708716652456,-500.0,0.00029033,2]
[314988277,1708716652465,-500.0,0.00029033,2]
[314988278,1708716652475,-500.0,0.00029033,2]
[314988279,1708716652485,-500.0,0.00029033,2]
[314988280,1708716652495,-500.0,0.00029033,2]
[314988281,1708716652504,-522.38233872,0.00029033,2]
[314988282,1708716652514,-500.0,0.00029033,2]
[314988283,1708716652523,-500.0,0.00029033,2]
[314988284,1708716652533,-500.0,0.00029033,2]
[314988285,1708716652542,-487.14722511,0.00029033,2]
[314988286,1708716652551,-500.0,0.00029033,2]
[314988287,1708716652561,-500.0,0.00029033,2]
[314988288,1708716652570,-500.0,0.00029033,2]
[314988289,1708716652580,-500.0,0.00029033,2]
[314988290,1708716652590,-500.0,0.00029033,2]
[314988291,1708716652599,-500.0,0.00029033,2]
[314988292,1708716652609,-500.0,0.00029033,2]
[314988293,1708716652619,-500.0,0.00029033,2]
[314988294,1708716652628,-431.99257393,0.00029033,2]
[314988295,1708716652638,-221.36039555,0.00029033,2]
[314988296,1708716652650,-500.0,0.00029033,2]
[314988297,1708716652659,-500.0,0.00029033,2]
[314988298,1708716652669,-500.0,0.00029033,2]
[314988299,1708716652678,-150.0,0.00029033,2]
[314988300,1708716652688,-500.0,0.00029033,2]
[314988301,1708716652698,-500.0,0.00029033,2]
[314988302,1708716652707,-500.0,0.00029033,2]
[314988303,1708716652717,-500.0,0.00029033,2]
[314988304,1708716652726,-500.0,0.00029033,2]
[314988305,1708716652737,-500.0,0.00029033,2]
[314988306,1708716652748,-218.88036819,0.00029033,2]
[314988307,1708716652758,-500.0,0.00029033,2]
[314988308,1708716652768,-500.0,0.00029033,2]
[314988309,1708716652778,-500.0,0.00029033,2]
[314988310,1708716652788,-500.0,0.00029033,2]
[314988311,1708716652798,-500.0,0.00029033,2]
[314988312,1708716652808,-500.0,0.00029033,2]
[314988313,1708716652817,-500.0,0.00029033,2]
[314988314,1708716652827,-500.0,0.00029033,2]
[314988315,1708716652836,-500.0,0.00029033,2]
[314988316,1708716652846,-500.0,0.00029033,2]
[314988317,1708716652855,-500.0,0.00029033,2]
[314988318,1708716652864,-500.0,0.00029033,2]
[314988319,1708716652874,-500.0,0.00029033,2]
[314988320,1708716652883,-500.0,0.00029033,2]
[314988321,1708716652893,-500.0,0.00029033,2]
[314988322,1708716652905,-500.0,0.00029033,2]
[314988323,1708716652915,-500.0,0.00029033,2]
[314988324,1708716652925,-500.0,0.00029033,2]
[314988325,1708716652935,-500.0,0.00029033,2]
[314988326,1708716652944,-500.0,0.00029033,2]
[314988327,1708716652953,-500.0,0.00029033,2]
[314988328,1708716652963,-500.0,0.00029033,2]
[314988329,1708716652973,-500.0,0.00029033,2]
[314988330,1708716652983,-500.0,0.00029033,2]
[314988331,1708716652993,-500.0,0.00029033,2]
[314988332,1708716653002,-500.0,0.00029033,2]
[314988333,1708716653012,-500.0,0.00029033,2]
[314988334,1708716653022,-500.0,0.00029033,2]
[314988335,1708716653032,-500.0,0.00029033,2]
[314988336,1708716653042,-500.0,0.00029033,2]
[314988337,1708716653051,-500.0,0.00029033,2]
[314988338,1708716653061,-548.31039464,0.00029033,2]
[314988339,1708716653070,-500.0,0.00029033,2]
[314988340,1708716653080,-500.0,0.00029033,2]
[314988341,1708716653089,-500.0,0.00029033,2]
[314988342,1708716653099,-500.0,0.00029033,2]
[314988343,1708716653108,-500.0,0.00029033,2]
[314988344,1708716653118,-500.0,0.00029033,2]
[314988345,1708716653128,-500.0,0.00029033,2]
[314988346,1708716653137,-500.0,0.00029033,2]
[314988347,1708716653149,-500.0,0.00029033,2]
[314988348,1708716653158,-500.0,0.00029033,2]
[314988349,1708716653167,-500.0,0.00029033,2]
[314988350,1708716653177,-500.0,0.00029033,2]
[314988351,1708716653187,-500.0,0.00029033,2]
[314988352,1708716653197,-1226.41,0.00029033,2]
[314988353,1708716653207,-526.79310247,0.00029033,2]
[314988354,1708716653216,-500.0,0.00029033,2]
[314988355,1708716653226,-500.0,0.00029033,2]